{"text_format":"3","workbook":"xlsx","n_sheets":7,"sheets":["Ponedeljek","Torek","Sreda","Četrtek","Petek","Sobota","Nedelja"],"not_rendered":{"defined_names":24},"read":"whole","date_system":"1900"}

{"sheet":"Ponedeljek","index":0,"n_rows":10,"n_cols":13,"rows_kept":10,"merged":[[1,1,2,1],[1,2,1,10],[1,11,1,12],[2,2,2,10],[2,11,2,12]]}
[null,"UREJANJE IZMENSKEGA DELA"]
[null,"PONEDELJEK","Za teden: ",{"$nulls":8},"DATUM"]
[null,null,"Ime oddelka ",{"$nulls":8},"ODDELEK"]
[null,"Ime zaposlenega","7:00","8:00","9:00","10:00","11:00","12:00","13:00","14:00","15:00","Bolniška odsotnost?","VSOTA"]
[null,"Irena F","vodja","vodja","vodja","vodja","vodja","vodja","vodja","vodja","vodja",null,{"$f":"IFERROR(COUNTIF(Ponedeljek[[#This Row],[7:00]:[15:00]],\"*\"),\"\")","v":9}]
[null,"Matej Z",null,"blagajna","blagajna","blagajna","blagajna",{"$nulls":5},{"$f":"IFERROR(COUNTIF(Ponedeljek[[#This Row],[7:00]:[15:00]],\"*\"),\"\")","v":4}]
[null,"Janez S",null,"recepcija","recepcija","recepcija","recepcija ","recepcija","recepcija","recepcija",null,null,{"$f":"IFERROR(COUNTIF(Ponedeljek[[#This Row],[7:00]:[15:00]],\"*\"),\"\")","v":7}]
[null,"Franc M",null,"recepcija","recepcija","recepcija","recepcija ","recepcija","recepcija","recepcija",null,null,{"$f":"IFERROR(COUNTIF(Ponedeljek[[#This Row],[7:00]:[15:00]],\"*\"),\"\")","v":7}]
[null,"Matjaž P",{"$nulls":10},{"$f":"IFERROR(COUNTIF(Ponedeljek[[#This Row],[7:00]:[15:00]],\"*\"),\"\")","v":0}]
[null,"Tereza A",{"$nulls":5},"blagajna","blagajna","blagajna","blagajna",null,{"$f":"IFERROR(COUNTIF(Ponedeljek[[#This Row],[7:00]:[15:00]],\"*\"),\"\")","v":4}]

{"sheet":"Torek","index":1,"n_rows":10,"n_cols":13,"rows_kept":10,"merged":[[1,1,2,1],[1,2,1,10],[1,11,1,12],[2,2,2,10],[2,11,2,12]]}
[null,{"$f":"SHIFT_SCHEDULE_Title","v":"UREJANJE IZMENSKEGA DELA"}]
[null,"TOREK","Za teden: ",{"$nulls":8},{"$f":"DATUM","v":"DATUM"}]
[null,null,"Ime oddelka ",{"$nulls":8},{"$f":"ODDELEK","v":"ODDELEK"}]
[null,"Ime zaposlenega","7:00","8:00","9:00","10:00","11:00","12:00","13:00","14:00","15:00","Bolniška odsotnost?","VSOTA"]
[null,"Irena F","vodja","vodja","vodja","vodja","vodja","vodja","vodja","vodja","vodja",null,{"$f":"IFERROR(COUNTIF(Torek[[#This Row],[7:00]:[15:00]],\"*\"),\"\")","v":9}]
[null,"Matej Z",null,"blagajna","blagajna","blagajna","blagajna",{"$nulls":5},{"$f":"IFERROR(COUNTIF(Torek[[#This Row],[7:00]:[15:00]],\"*\"),\"\")","v":4}]
[null,"Janez S",null,"recepcija","recepcija","recepcija","recepcija ","recepcija","recepcija","recepcija",null,null,{"$f":"IFERROR(COUNTIF(Torek[[#This Row],[7:00]:[15:00]],\"*\"),\"\")","v":7}]
[null,"Franc M",null,"recepcija","recepcija","recepcija","recepcija ","recepcija","recepcija","recepcija",null,null,{"$f":"IFERROR(COUNTIF(Torek[[#This Row],[7:00]:[15:00]],\"*\"),\"\")","v":7}]
[null,"Matjaž P",{"$nulls":9},"Bolniška odsotnost",{"$f":"IFERROR(COUNTIF(Torek[[#This Row],[7:00]:[15:00]],\"*\"),\"\")","v":0}]
[null,"Tereza A",{"$nulls":5},"blagajna","blagajna","blagajna","blagajna",null,{"$f":"IFERROR(COUNTIF(Torek[[#This Row],[7:00]:[15:00]],\"*\"),\"\")","v":4}]

{"sheet":"Sreda","index":2,"n_rows":10,"n_cols":13,"rows_kept":10,"merged":[[1,1,2,1],[1,2,1,10],[1,11,1,12],[2,2,2,10],[2,11,2,12]]}
[null,{"$f":"SHIFT_SCHEDULE_Title","v":"UREJANJE IZMENSKEGA DELA"}]
[null,"SREDA","Za teden: ",{"$nulls":8},{"$f":"DATUM","v":"DATUM"}]
[null,null,"Ime oddelka ",{"$nulls":8},{"$f":"ODDELEK","v":"ODDELEK"}]
[null,"Ime zaposlenega","7:00","8:00","9:00","10:00","11:00","12:00","13:00","14:00","15:00","Bolniška odsotnost?","VSOTA"]
[null,"Irena F","vodja","vodja","vodja","vodja","vodja","vodja","vodja","vodja","vodja",null,{"$f":"IFERROR(COUNTIF(Sreda[[#This Row],[7:00]:[15:00]],\"*\"),\"\")","v":9}]
[null,"Matej Z",null,"blagajna","blagajna","blagajna","blagajna",{"$nulls":5},{"$f":"IFERROR(COUNTIF(Sreda[[#This Row],[7:00]:[15:00]],\"*\"),\"\")","v":4}]
[null,"Janez S",null,"recepcija","recepcija","recepcija","recepcija ","recepcija","recepcija","recepcija",null,null,{"$f":"IFERROR(COUNTIF(Sreda[[#This Row],[7:00]:[15:00]],\"*\"),\"\")","v":7}]
[null,"Franc M",null,"recepcija","recepcija","recepcija","recepcija ","recepcija","recepcija","recepcija",null,null,{"$f":"IFERROR(COUNTIF(Sreda[[#This Row],[7:00]:[15:00]],\"*\"),\"\")","v":7}]
[null,"Matjaž P",{"$nulls":9},"Bolniška odsotnost",{"$f":"IFERROR(COUNTIF(Sreda[[#This Row],[7:00]:[15:00]],\"*\"),\"\")","v":0}]
[null,"Tereza A",{"$nulls":5},"blagajna","blagajna","blagajna","blagajna",null,{"$f":"IFERROR(COUNTIF(Sreda[[#This Row],[7:00]:[15:00]],\"*\"),\"\")","v":4}]

{"sheet":"Četrtek","index":3,"n_rows":10,"n_cols":13,"rows_kept":10,"merged":[[1,1,2,1],[1,2,1,10],[1,11,1,12],[2,2,2,10],[2,11,2,12]]}
[null,{"$f":"SHIFT_SCHEDULE_Title","v":"UREJANJE IZMENSKEGA DELA"}]
[null,"ČETRTEK","Za teden: ",{"$nulls":8},{"$f":"DATUM","v":"DATUM"}]
[null,null,"Ime oddelka ",{"$nulls":8},{"$f":"ODDELEK","v":"ODDELEK"}]
[null,"Ime zaposlenega","7:00","8:00","9:00","10:00","11:00","12:00","13:00","14:00","15:00","Bolniška odsotnost?","VSOTA"]
[null,"Irena F","vodja","vodja","vodja","vodja","vodja","vodja","vodja","vodja","vodja",null,{"$f":"IFERROR(COUNTIF(Četrtek[[#This Row],[7:00]:[15:00]],\"*\"),\"\")","v":9}]
[null,"Matej Z",null,"blagajna","blagajna","blagajna","blagajna",{"$nulls":5},{"$f":"IFERROR(COUNTIF(Četrtek[[#This Row],[7:00]:[15:00]],\"*\"),\"\")","v":4}]
[null,"Janez S",null,"recepcija","recepcija","recepcija","recepcija ","recepcija","recepcija","recepcija",null,null,{"$f":"IFERROR(COUNTIF(Četrtek[[#This Row],[7:00]:[15:00]],\"*\"),\"\")","v":7}]
[null,"Franc M",null,"recepcija","recepcija","recepcija","recepcija ","recepcija","recepcija","recepcija",null,null,{"$f":"IFERROR(COUNTIF(Četrtek[[#This Row],[7:00]:[15:00]],\"*\"),\"\")","v":7}]
[null,"Matjaž P",{"$nulls":9},"Bolniška odsotnost",{"$f":"IFERROR(COUNTIF(Četrtek[[#This Row],[7:00]:[15:00]],\"*\"),\"\")","v":0}]
[null,"Tereza A",{"$nulls":5},"blagajna","blagajna","blagajna","blagajna",null,{"$f":"IFERROR(COUNTIF(Četrtek[[#This Row],[7:00]:[15:00]],\"*\"),\"\")","v":4}]

{"sheet":"Petek","index":4,"n_rows":10,"n_cols":13,"rows_kept":10,"merged":[[1,1,2,1],[1,2,1,10],[1,11,1,12],[2,2,2,10],[2,11,2,12]]}
[null,{"$f":"SHIFT_SCHEDULE_Title","v":"UREJANJE IZMENSKEGA DELA"}]
[null,"PETEK","Za teden: ",{"$nulls":8},{"$f":"DATUM","v":"DATUM"}]
[null,null,"Ime oddelka ",{"$nulls":8},{"$f":"ODDELEK","v":"ODDELEK"}]
[null,"Ime zaposlenega","7:00","8:00","9:00","10:00","11:00","12:00","13:00","14:00","15:00","Bolniška odsotnost?","VSOTA"]
[null,"Irena F","vodja","vodja","vodja","vodja","vodja","vodja","vodja","vodja","vodja",null,{"$f":"IFERROR(COUNTIF(Petek[[#This Row],[7:00]:[15:00]],\"*\"),\"\")","v":9}]
[null,"Matej Z",null,"blagajna","blagajna","blagajna","blagajna",{"$nulls":5},{"$f":"IFERROR(COUNTIF(Petek[[#This Row],[7:00]:[15:00]],\"*\"),\"\")","v":4}]
[null,"Janez S",null,"recepcija","recepcija","recepcija","recepcija ","recepcija","recepcija","recepcija",null,null,{"$f":"IFERROR(COUNTIF(Petek[[#This Row],[7:00]:[15:00]],\"*\"),\"\")","v":7}]
[null,"Franc M",null,"recepcija","recepcija","recepcija","recepcija ","recepcija","recepcija","recepcija",null,null,{"$f":"IFERROR(COUNTIF(Petek[[#This Row],[7:00]:[15:00]],\"*\"),\"\")","v":7}]
[null,"Matjaž P",{"$nulls":9},"Bolniška odsotnost",{"$f":"IFERROR(COUNTIF(Petek[[#This Row],[7:00]:[15:00]],\"*\"),\"\")","v":0}]
[null,"Tereza A",{"$nulls":5},"blagajna","blagajna","blagajna","blagajna",null,{"$f":"IFERROR(COUNTIF(Petek[[#This Row],[7:00]:[15:00]],\"*\"),\"\")","v":4}]

{"sheet":"Sobota","index":5,"n_rows":10,"n_cols":13,"rows_kept":10,"merged":[[1,1,2,1],[1,2,1,10],[1,11,1,12],[2,2,2,10],[2,11,2,12]]}
[null,{"$f":"SHIFT_SCHEDULE_Title","v":"UREJANJE IZMENSKEGA DELA"}]
[null,"SOBOTA","Za teden: ",{"$nulls":8},{"$f":"DATUM","v":"DATUM"}]
[null,null,"Ime oddelka ",{"$nulls":8},{"$f":"ODDELEK","v":"ODDELEK"}]
[null,"Ime zaposlenega","7:00","8:00","9:00","10:00","11:00","12:00","13:00","14:00","15:00","Bolniška odsotnost?","VSOTA"]
[null,"Irena F","vodja","vodja","vodja","vodja","vodja","vodja","vodja","vodja","vodja",null,{"$f":"IFERROR(COUNTIF(Sobota[[#This Row],[7:00]:[15:00]],\"*\"),\"\")","v":9}]
[null,"Matej Z",null,"blagajna","blagajna","blagajna","blagajna",{"$nulls":5},{"$f":"IFERROR(COUNTIF(Sobota[[#This Row],[7:00]:[15:00]],\"*\"),\"\")","v":4}]
[null,"Janez S",null,"recepcija","recepcija","recepcija","recepcija ","recepcija","recepcija","recepcija",null,null,{"$f":"IFERROR(COUNTIF(Sobota[[#This Row],[7:00]:[15:00]],\"*\"),\"\")","v":7}]
[null,"Franc M",null,"recepcija","recepcija","recepcija","recepcija ","recepcija","recepcija","recepcija",null,null,{"$f":"IFERROR(COUNTIF(Sobota[[#This Row],[7:00]:[15:00]],\"*\"),\"\")","v":7}]
[null,"Matjaž P",{"$nulls":9},"Bolniška odsotnost",{"$f":"IFERROR(COUNTIF(Sobota[[#This Row],[7:00]:[15:00]],\"*\"),\"\")","v":0}]
[null,"Tereza A",{"$nulls":5},"blagajna","blagajna","blagajna","blagajna",null,{"$f":"IFERROR(COUNTIF(Sobota[[#This Row],[7:00]:[15:00]],\"*\"),\"\")","v":4}]

{"sheet":"Nedelja","index":6,"n_rows":10,"n_cols":13,"rows_kept":10,"merged":[[1,1,2,1],[1,2,1,10],[1,11,1,12],[2,2,2,10],[2,11,2,12]]}
[null,{"$f":"SHIFT_SCHEDULE_Title","v":"UREJANJE IZMENSKEGA DELA"}]
[null,"NEDELJA","Za teden: ",{"$nulls":8},{"$f":"DATUM","v":"DATUM"}]
[null,null,"Ime oddelka ",{"$nulls":8},{"$f":"ODDELEK","v":"ODDELEK"}]
[null,"Ime zaposlenega","7:00","8:00","9:00","10:00","11:00","12:00","13:00","14:00","15:00","Bolniška odsotnost?","VSOTA"]
[null,"Irena F","vodja","vodja","vodja","vodja","vodja","vodja","vodja","vodja","vodja",null,{"$f":"IFERROR(COUNTIF(Nedelja[[#This Row],[7:00]:[15:00]],\"*\"),\"\")","v":9}]
[null,"Matej Z",null,"blagajna","blagajna","blagajna","blagajna",{"$nulls":5},{"$f":"IFERROR(COUNTIF(Nedelja[[#This Row],[7:00]:[15:00]],\"*\"),\"\")","v":4}]
[null,"Janez S",null,"recepcija","recepcija","recepcija","recepcija ","recepcija","recepcija","recepcija",null,null,{"$f":"IFERROR(COUNTIF(Nedelja[[#This Row],[7:00]:[15:00]],\"*\"),\"\")","v":7}]
[null,"Franc M",null,"recepcija","recepcija","recepcija","recepcija ","recepcija","recepcija","recepcija",null,null,{"$f":"IFERROR(COUNTIF(Nedelja[[#This Row],[7:00]:[15:00]],\"*\"),\"\")","v":7}]
[null,"Matjaž P",{"$nulls":9},"Bolniška odsotnost",{"$f":"IFERROR(COUNTIF(Nedelja[[#This Row],[7:00]:[15:00]],\"*\"),\"\")","v":0}]
[null,"Tereza A",{"$nulls":5},"blagajna","blagajna","blagajna","blagajna",null,{"$f":"IFERROR(COUNTIF(Nedelja[[#This Row],[7:00]:[15:00]],\"*\"),\"\")","v":4}]